[Event "Titled Tuesday Blitz January 31 Late 2023"]
[White "Przybylski, Wojciech"]
[Black "Grigoriants, Sergey"]
[WhiteFideId "1117599"]
[BlackFideId "4130804"]
[WhiteElo "2321"]
[BlackElo "2562"]
[Result "0-1"]
[Round "01"]
[TimeControl "180+2"]
[Date "2023.01.31"]
[WhiteClock "0:00:04"]
[BlackClock "0:00:09"]

1. e4 {[%clk 0:02:55]}  c5 {[%clk 0:02:58]} 2. Nf3 {[%clk 0:02:54]}  d6 {[%clk 0:02:58]} 3. Bc4 {[%clk 0:02:53]}  Nf6 {[%clk 0:02:56]} 4. d3 {[%clk 0:02:52]}  g6 {[%clk 0:02:51]} 5. a4 {[%clk 0:02:52]}  Bg7 {[%clk 0:02:52]} 6. a5 {[%clk 0:02:50]}  O-O {[%clk 0:02:51]} 7. O-O {[%clk 0:02:49]}  Nc6 {[%clk 0:02:41]} 8. Bd2 {[%clk 0:02:49]}  Rb8 {[%clk 0:02:39]} 9. h3 {[%clk 0:02:43]}  Nd7 {[%clk 0:02:30]} 10. Qc1 {[%clk 0:02:34]}  b5 {[%clk 0:02:08]} 11. axb6 {[%clk 0:02:32]}  Nxb6 {[%clk 0:01:54]} 12. Bb3 {[%clk 0:02:29]}  Be6 {[%clk 0:01:40]} 13. Bxe6 {[%clk 0:02:22]}  fxe6 {[%clk 0:01:40]} 14. Bh6 {[%clk 0:02:19]}  Rxf3 {[%clk 0:01:29]} 15. Bxg7 {[%clk 0:02:19]}  Kxg7 {[%clk 0:01:16]} 16. gxf3 {[%clk 0:02:18]}  Nd4 {[%clk 0:01:17]} 17. Qd1 {[%clk 0:02:14]}  Qf8 {[%clk 0:01:17]} 18. Nd2 {[%clk 0:02:08]}  Qf4 {[%clk 0:01:05]} 19. c3 {[%clk 0:02:02]}  Nc6 {[%clk 0:01:03]} 20. Qe2 {[%clk 0:01:47]}  Nd7 {[%clk 0:01:03]} 21. Qe3 {[%clk 0:01:45]}  Qh4 {[%clk 0:01:00]} 22. Kh2 {[%clk 0:01:34]}  Rxb2 {[%clk 0:00:39]} 23. Rfb1 {[%clk 0:01:26]}  Rc2 {[%clk 0:00:31]} 24. Rc1 {[%clk 0:01:25]}  Rxc1 {[%clk 0:00:26]} 25. Rxc1 {[%clk 0:01:25]}  Nf6 {[%clk 0:00:27]} 26. Rg1 {[%clk 0:01:08]}  Nh5 {[%clk 0:00:19]} 27. Rg4 {[%clk 0:01:06]}  Qf6 {[%clk 0:00:20]} 28. d4 {[%clk 0:00:55]}  cxd4 {[%clk 0:00:19]} 29. cxd4 {[%clk 0:00:55]}  Nxd4 {[%clk 0:00:18]} 30. e5 {[%clk 0:00:54]}  dxe5 {[%clk 0:00:16]} 31. Qg5 {[%clk 0:00:35]}  Nf4 {[%clk 0:00:12]} 32. Qxf6+ {[%clk 0:00:26]}  exf6 {[%clk 0:00:12]} 33. Rg1 {[%clk 0:00:26]}  Nd3 {[%clk 0:00:07]} 34. Kg2 {[%clk 0:00:23]}  Nc2 {[%clk 0:00:06]} 35. Rb1 {[%clk 0:00:21]}  a5 {[%clk 0:00:06]} 36. Rb7+ {[%clk 0:00:20]}  Kh6 {[%clk 0:00:06]} 37. Ra7 {[%clk 0:00:21]}  Nd4 {[%clk 0:00:04]} 38. Rxa5 {[%clk 0:00:20]}  Kg5 {[%clk 0:00:04]} 39. Ra7 {[%clk 0:00:15]}  h5 {[%clk 0:00:04]} 40. Rf7 {[%clk 0:00:15]}  Nf4+ {[%clk 0:00:04]} 41. Kg3 {[%clk 0:00:13]}  Nde2+ {[%clk 0:00:03]} 42. Kh2 {[%clk 0:00:13]}  f5 {[%clk 0:00:04]} 43. Rf8 {[%clk 0:00:12]}  Nd4 {[%clk 0:00:04]} 44. Rf7 {[%clk 0:00:11]}  Kh4 {[%clk 0:00:05]} 45. Rg7 {[%clk 0:00:11]}  g5 {[%clk 0:00:05]} 46. Rg8 {[%clk 0:00:09]}  Nxh3 {[%clk 0:00:05]} 47. Ra8 {[%clk 0:00:05]}  Nxf2 {[%clk 0:00:05]} 48. Ra5 {[%clk 0:00:05]}  Nd3 {[%clk 0:00:05]} 49. Kg2 {[%clk 0:00:05]}  g4 {[%clk 0:00:05]} 50. fxg4 {[%clk 0:00:05]}  hxg4 {[%clk 0:00:05]} 51. Nc4 {[%clk 0:00:05]}  Kg5 {[%clk 0:00:05]} 52. Nxe5 {[%clk 0:00:05]}  Nxe5 {[%clk 0:00:05]} 53. Rxe5 {[%clk 0:00:06]}  Kf4 {[%clk 0:00:06]} 54. Ra5 {[%clk 0:00:06]}  e5 {[%clk 0:00:06]} 55. Ra4 {[%clk 0:00:06]}  Ke3 {[%clk 0:00:06]} 56. Ra3+ {[%clk 0:00:06]}  Ke4 {[%clk 0:00:06]} 57. Ra5 {[%clk 0:00:05]}  f4 {[%clk 0:00:06]} 58. Ra3 {[%clk 0:00:05]}  g3 {[%clk 0:00:06]} 59. Ra4 {[%clk 0:00:05]}  Kf5 {[%clk 0:00:06]} 60. Ra5 {[%clk 0:00:05]}  Nc2 {[%clk 0:00:06]} 61. Ra8 {[%clk 0:00:05]}  Ke4 {[%clk 0:00:05]} 62. Rc8 {[%clk 0:00:04]}  Ne3+ {[%clk 0:00:05]} 63. Kh3 {[%clk 0:00:03]}  Kf3 {[%clk 0:00:05]} 64. Rc1 {[%clk 0:00:03]}  e4 {[%clk 0:00:05]} 65. Ra1 {[%clk 0:00:03]}  g2 {[%clk 0:00:05]} 66. Kh2 {[%clk 0:00:03]}  Nf1+ {[%clk 0:00:05]} 67. Kg1 {[%clk 0:00:03]}  Ng3 {[%clk 0:00:05]} 68. Ra3+ {[%clk 0:00:02]}  e3 {[%clk 0:00:06]} 69. Ra1 {[%clk 0:00:01]}  Ne2+ {[%clk 0:00:06]} 70. Kh2 {[%clk 0:00:02]}  g1=Q+ {[%clk 0:00:07]} 71. Rxg1 {[%clk 0:00:02]}  Nxg1 {[%clk 0:00:08]} 72. Kxg1 {[%clk 0:00:03]}  e2 {[%clk 0:00:08]} 73. Kh2 {[%clk 0:00:03]}  e1=Q {[%clk 0:00:08]} 74. Kh3 {[%clk 0:00:04]}  Qh1# {[%clk 0:00:09]} 0-1


[Site "https://www.chess.com"]

[Event "Titled Tuesday Blitz January 31 Late 2023"]
[White "Donskov, Anatoly"]
[Black "Ibarra Jerez, Jose Carlos"]
[WhiteFideId "24143413"]
[BlackFideId "2226332"]
[WhiteElo "2279"]
[BlackElo "2563"]
[Result "0-1"]
[Round "01"]
[TimeControl "180+2"]
[Date "2023.01.31"]
[WhiteClock "0:00:06"]
[BlackClock "0:02:02"]

1. e4 {[%clk 0:03:00]}  c5 {[%clk 0:02:59]} 2. Nf3 {[%clk 0:03:00]}  e6 {[%clk 0:03:00]} 3. d4 {[%clk 0:03:01]}  cxd4 {[%clk 0:03:00]} 4. Nxd4 {[%clk 0:03:02]}  Bc5 {[%clk 0:03:00]} 5. Nb3 {[%clk 0:03:02]}  Bb6 {[%clk 0:03:01]} 6. Be2 {[%clk 0:03:01]}  Ne7 {[%clk 0:03:02]} 7. O-O {[%clk 0:03:02]}  O-O {[%clk 0:03:02]} 8. Kh1 {[%clk 0:02:50]}  f5 {[%clk 0:03:03]} 9. e5 {[%clk 0:02:44]}  f4 {[%clk 0:03:02]} 10. Bd3 {[%clk 0:01:55]}  Nbc6 {[%clk 0:03:01]} 11. Qh5 {[%clk 0:01:33]}  Ng6 {[%clk 0:03:00]} 12. Bxg6 {[%clk 0:01:08]}  hxg6 {[%clk 0:03:01]} 13. Qxg6 {[%clk 0:01:09]}  Nxe5 {[%clk 0:03:02]} 14. Qe4 {[%clk 0:01:09]}  Qf6 {[%clk 0:02:59]} 15. f3 {[%clk 0:01:01]}  d5 {[%clk 0:02:59]} 16. Qe2 {[%clk 0:01:02]}  Bd7 {[%clk 0:02:56]} 17. Nc3 {[%clk 0:00:56]}  Nc4 {[%clk 0:02:54]} 18. a4 {[%clk 0:00:42]}  a6 {[%clk 0:02:51]} 19. a5 {[%clk 0:00:40]}  Ba7 {[%clk 0:02:51]} 20. Na4 {[%clk 0:00:40]}  Ne3 {[%clk 0:02:41]} 21. Re1 {[%clk 0:00:33]}  Bb5 {[%clk 0:02:41]} 22. Qd2 {[%clk 0:00:30]}  Rac8 {[%clk 0:02:31]} 23. c3 {[%clk 0:00:30]}  e5 {[%clk 0:02:17]} 24. Nb6 {[%clk 0:00:18]}  Bxb6 {[%clk 0:02:18]} 25. axb6 {[%clk 0:00:19]}  Qxb6 {[%clk 0:02:18]} 26. Rxe3 {[%clk 0:00:19]}  fxe3 {[%clk 0:02:17]} 27. Qxd5+ {[%clk 0:00:19]}  Rf7 {[%clk 0:02:13]} 28. Qe4 {[%clk 0:00:11]}  e2 {[%clk 0:02:11]} 29. Be3 {[%clk 0:00:10]}  Qd6 {[%clk 0:02:06]} 30. Re1 {[%clk 0:00:06]}  Qd1 {[%clk 0:02:03]} 31. Bf2 {[%clk 0:00:06]}  Qxb3 {[%clk 0:02:02]} 0-1


[Site "https://www.chess.com"]

[Event "Titled Tuesday Blitz January 31 Late 2023"]
[White "Kowalski, Igor"]
[Black "Estrada Nieto, Julian"]
[WhiteFideId "1172468"]
[BlackFideId "5101018"]
[WhiteElo "2380"]
[BlackElo "2215"]
[Result "1-0"]
[Round "01"]
[TimeControl "180+2"]
[Date "2023.01.31"]
[WhiteClock "0:00:10"]
[BlackClock "0:00:09"]

1. d4 {[%clk 0:02:55]}  d5 {[%clk 0:02:59]} 2. Nf3 {[%clk 0:02:54]}  Nf6 {[%clk 0:02:59]} 3. Bf4 {[%clk 0:02:54]}  c5 {[%clk 0:02:59]} 4. c3 {[%clk 0:02:54]}  Nc6 {[%clk 0:02:59]} 5. e3 {[%clk 0:02:53]}  Qb6 {[%clk 0:02:57]} 6. dxc5 {[%clk 0:02:49]}  Qxb2 {[%clk 0:02:47]} 7. Nbd2 {[%clk 0:02:49]}  Qxc3 {[%clk 0:02:46]} 8. Bb5 {[%clk 0:02:46]}  Bd7 {[%clk 0:02:28]} 9. O-O {[%clk 0:02:41]}  e6 {[%clk 0:02:28]} 10. Nb3 {[%clk 0:02:39]}  Be7 {[%clk 0:02:22]} 11. Rc1 {[%clk 0:01:58]}  Qb4 {[%clk 0:02:22]} 12. Bd3 {[%clk 0:01:52]}  O-O {[%clk 0:02:19]} 13. Ne5 {[%clk 0:01:50]}  Rfd8 {[%clk 0:02:12]} 14. Bb1 {[%clk 0:01:42]}  Nxe5 {[%clk 0:02:10]} 15. Bxe5 {[%clk 0:01:43]}  Bb5 {[%clk 0:02:09]} 16. Re1 {[%clk 0:01:42]}  g6 {[%clk 0:01:58]} 17. Nd4 {[%clk 0:01:23]}  Nd7 {[%clk 0:01:49]} 18. Bc7 {[%clk 0:01:09]}  Rdc8 {[%clk 0:01:40]} 19. a3 {[%clk 0:01:05]}  Qa4 {[%clk 0:01:37]} 20. Bc2 {[%clk 0:00:53]}  Qxa3 {[%clk 0:01:21]} 21. Nxb5 {[%clk 0:00:52]}  Qxc5 {[%clk 0:01:21]} 22. Ba4 {[%clk 0:00:32]}  Qb4 {[%clk 0:01:17]} 23. Rb1 {[%clk 0:00:30]}  Qc5 {[%clk 0:01:09]} 24. Qd2 {[%clk 0:00:22]}  Nb6 {[%clk 0:00:54]} 25. Bxb6 {[%clk 0:00:13]}  Qxb6 {[%clk 0:00:54]} 26. Nd4 {[%clk 0:00:11]}  Qc7 {[%clk 0:00:52]} 27. Rec1 {[%clk 0:00:11]}  Qd8 {[%clk 0:00:51]} 28. Rxb7 {[%clk 0:00:11]}  Rxc1+ {[%clk 0:00:41]} 29. Qxc1 {[%clk 0:00:12]}  Qa5 {[%clk 0:00:40]} 30. Rxe7 {[%clk 0:00:10]}  Qxa4 {[%clk 0:00:40]} 31. h4 {[%clk 0:00:11]}  a5 {[%clk 0:00:37]} 32. Qc7 {[%clk 0:00:11]}  Qb4 {[%clk 0:00:30]} 33. Rxf7 {[%clk 0:00:10]}  Qe1+ {[%clk 0:00:23]} 34. Kh2 {[%clk 0:00:10]}  Qb4 {[%clk 0:00:11]} 35. Rg7+ {[%clk 0:00:10]}  Kh8 {[%clk 0:00:09]} 36. Rxh7+ {[%clk 0:00:10]} 1-0


[Site "https://www.chess.com"]

[Event "Titled Tuesday Blitz January 31 Late 2023"]
[White "Llanos, Guillermo"]
[Black "Pakleza, Zbigniew"]
[WhiteFideId "100358"]
[BlackFideId "1119290"]
[WhiteElo "2290"]
[BlackElo "2494"]
[Result "0-1"]
[Round "01"]
[TimeControl "180+2"]
[Date "2023.01.31"]
[WhiteClock "0:00:02"]
[BlackClock "0:00:02"]

1. Nf3 {[%clk 0:02:57]}  d5 {[%clk 0:02:59]} 2. d4 {[%clk 0:02:55]}  Nf6 {[%clk 0:02:55]} 3. c4 {[%clk 0:02:53]}  c6 {[%clk 0:02:56]} 4. Nc3 {[%clk 0:02:51]}  Qb6 {[%clk 0:02:56]} 5. e3 {[%clk 0:02:46]}  Bf5 {[%clk 0:02:55]} 6. cxd5 {[%clk 0:02:38]}  cxd5 {[%clk 0:02:54]} 7. Bb5+ {[%clk 0:02:36]}  Nc6 {[%clk 0:02:52]} 8. O-O {[%clk 0:02:31]}  e6 {[%clk 0:02:50]} 9. Ne5 {[%clk 0:02:29]}  h6 {[%clk 0:02:36]} 10. Qa4 {[%clk 0:02:20]}  Rc8 {[%clk 0:02:36]} 11. Bd2 {[%clk 0:02:14]}  Bd6 {[%clk 0:02:35]} 12. Rac1 {[%clk 0:01:48]}  Bxe5 {[%clk 0:02:16]} 13. dxe5 {[%clk 0:01:47]}  Nd7 {[%clk 0:02:17]} 14. f4 {[%clk 0:01:41]}  O-O {[%clk 0:02:15]} 15. Kh1 {[%clk 0:01:33]}  Nc5 {[%clk 0:02:10]} 16. Qd1 {[%clk 0:01:21]}  a6 {[%clk 0:01:57]} 17. Bxc6 {[%clk 0:01:16]}  Rxc6 {[%clk 0:01:58]} 18. b3 {[%clk 0:01:12]}  Rfc8 {[%clk 0:01:46]} 19. Ne2 {[%clk 0:01:09]}  Bg4 {[%clk 0:01:25]} 20. h3 {[%clk 0:01:06]}  Bxe2 {[%clk 0:01:25]} 21. Qxe2 {[%clk 0:01:05]}  Ne4 {[%clk 0:01:26]} 22. Kh2 {[%clk 0:00:58]}  Qb5 {[%clk 0:01:03]} 23. Qxb5 {[%clk 0:00:54]}  axb5 {[%clk 0:01:04]} 24. Rxc6 {[%clk 0:00:52]}  bxc6 {[%clk 0:01:00]} 25. Ba5 {[%clk 0:00:45]}  c5 {[%clk 0:01:00]} 26. Rc1 {[%clk 0:00:38]}  Ra8 {[%clk 0:00:42]} 27. Bb6 {[%clk 0:00:37]}  c4 {[%clk 0:00:29]} 28. bxc4 {[%clk 0:00:35]}  dxc4 {[%clk 0:00:25]} 29. Rc2 {[%clk 0:00:33]}  f5 {[%clk 0:00:10]} 30. Bd4 {[%clk 0:00:33]}  c3 {[%clk 0:00:06]} 31. g4 {[%clk 0:00:31]}  g6 {[%clk 0:00:05]} 32. Kg2 {[%clk 0:00:29]}  b4 {[%clk 0:00:05]} 33. Kf3 {[%clk 0:00:27]}  Kf7 {[%clk 0:00:05]} 34. Ke2 {[%clk 0:00:27]}  Ke8 {[%clk 0:00:03]} 35. Kd3 {[%clk 0:00:27]}  Rc8 {[%clk 0:00:03]} 36. gxf5 {[%clk 0:00:24]}  gxf5 {[%clk 0:00:04]} 37. Rg2 {[%clk 0:00:23]}  Kd7 {[%clk 0:00:04]} 38. Kc2 {[%clk 0:00:21]}  Kc6 {[%clk 0:00:03]} 39. Rg6 {[%clk 0:00:20]}  Kd5 {[%clk 0:00:02]} 40. Rg7 {[%clk 0:00:18]}  Ra8 {[%clk 0:00:02]} 41. Rd7+ {[%clk 0:00:12]}  Kc6 {[%clk 0:00:02]} 42. Ra7 {[%clk 0:00:12]}  Rxa7 {[%clk 0:00:02]} 43. Bxa7 {[%clk 0:00:11]}  Kb5 {[%clk 0:00:02]} 44. Bb8 {[%clk 0:00:06]}  Kc4 {[%clk 0:00:02]} 45. Bd6 {[%clk 0:00:05]}  Nf2 {[%clk 0:00:02]} 46. h4 {[%clk 0:00:02]}  Ng4 {[%clk 0:00:02]} 0-1


[Site "https://www.chess.com"]

[Event "Titled Tuesday Blitz January 31 Late 2023"]
[White "Davidson, Kevin"]
[Black "Boruchovsky, Avital"]
[WhiteFideId "2056810"]
[BlackFideId "2800055"]
[WhiteElo "2154"]
[BlackElo "2539"]
[Result "0-1"]
[Round "01"]
[TimeControl "180+2"]
[Date "2023.01.31"]
[WhiteClock "0:00:02"]
[BlackClock "0:00:14"]

1. e4 {[%clk 0:03:00]}  e5 {[%clk 0:02:58]} 2. Nf3 {[%clk 0:03:01]}  d6 {[%clk 0:02:59]} 3. d4 {[%clk 0:02:59]}  exd4 {[%clk 0:03:00]} 4. Nxd4 {[%clk 0:03:00]}  Nf6 {[%clk 0:03:00]} 5. Nc3 {[%clk 0:03:00]}  Be7 {[%clk 0:03:01]} 6. Be2 {[%clk 0:03:01]}  O-O {[%clk 0:03:01]} 7. O-O {[%clk 0:03:01]}  c6 {[%clk 0:03:01]} 8. f4 {[%clk 0:03:01]}  Re8 {[%clk 0:03:01]} 9. Bf3 {[%clk 0:03:01]}  Bf8 {[%clk 0:03:00]} 10. Re1 {[%clk 0:03:02]}  Nbd7 {[%clk 0:02:55]} 11. Be3 {[%clk 0:02:59]}  Nc5 {[%clk 0:02:51]} 12. Bf2 {[%clk 0:02:58]}  a5 {[%clk 0:02:50]} 13. g4 {[%clk 0:02:52]}  g6 {[%clk 0:02:32]} 14. g5 {[%clk 0:02:47]}  Nfd7 {[%clk 0:02:32]} 15. h4 {[%clk 0:02:42]}  Bg7 {[%clk 0:02:30]} 16. h5 {[%clk 0:02:38]}  Nf8 {[%clk 0:02:27]} 17. Kg2 {[%clk 0:02:31]}  Nfe6 {[%clk 0:02:23]} 18. Nxe6 {[%clk 0:02:03]}  Nxe6 {[%clk 0:02:24]} 19. Qd2 {[%clk 0:02:02]}  Qc7 {[%clk 0:02:05]} 20. Rad1 {[%clk 0:01:53]}  d5 {[%clk 0:01:55]} 21. e5 {[%clk 0:01:53]}  b5 {[%clk 0:01:46]} 22. Rh1 {[%clk 0:01:48]}  b4 {[%clk 0:01:45]} 23. Ne2 {[%clk 0:01:48]}  Ba6 {[%clk 0:01:41]} 24. Nd4 {[%clk 0:01:34]}  Nxd4 {[%clk 0:01:11]} 25. Qxd4 {[%clk 0:01:34]}  Bb7 {[%clk 0:01:04]} 26. hxg6 {[%clk 0:01:07]}  fxg6 {[%clk 0:01:04]} 27. Rh4 {[%clk 0:00:59]}  Re7 {[%clk 0:01:01]} 28. Rdh1 {[%clk 0:00:58]}  Bf8 {[%clk 0:00:56]} 29. Qd3 {[%clk 0:00:47]}  Rd8 {[%clk 0:00:44]} 30. Bc5 {[%clk 0:00:41]}  Rg7 {[%clk 0:00:43]} 31. Qd4 {[%clk 0:00:38]}  Be7 {[%clk 0:00:32]} 32. Bb6 {[%clk 0:00:36]}  Qd7 {[%clk 0:00:31]} 33. Bg4 {[%clk 0:00:30]}  Qe8 {[%clk 0:00:19]} 34. Be6+ {[%clk 0:00:29]}  Kh8 {[%clk 0:00:18]} 35. Bxd8 {[%clk 0:00:25]}  c5 {[%clk 0:00:17]} 36. Qg1 {[%clk 0:00:09]}  d4+ {[%clk 0:00:17]} 37. Kf1 {[%clk 0:00:08]}  Bxd8 {[%clk 0:00:17]} 38. Bg4 {[%clk 0:00:05]}  Bxh1 {[%clk 0:00:16]} 39. Qxh1 {[%clk 0:00:05]}  Qf7 {[%clk 0:00:16]} 40. Qa8 {[%clk 0:00:04]}  Qxf4+ {[%clk 0:00:15]} 41. Ke1 {[%clk 0:00:02]}  Qxe5+ {[%clk 0:00:14]} 42. Kd1 {[%clk 0:00:02]}  Qxg5 {[%clk 0:00:14]} 0-1


[Site "https://www.chess.com"]

[Event "Titled Tuesday Blitz January 31 Late 2023"]
[White "Aguilar, Juan"]
[Black "Bacrot, Etienne"]
[WhiteFideId "3800091"]
[BlackFideId "605506"]
[WhiteElo "2254"]
[BlackElo "2667"]
[Result "0-1"]
[Round "01"]
[TimeControl "180+2"]
[Date "2023.01.31"]
[WhiteClock "0:01:01"]
[BlackClock "0:02:50"]

1. Nf3 {[%clk 0:02:59]}  c5 {[%clk 0:03:00]} 2. g3 {[%clk 0:02:59]}  Nc6 {[%clk 0:03:01]} 3. Bg2 {[%clk 0:03:00]}  e5 {[%clk 0:03:01]} 4. d3 {[%clk 0:03:01]}  g6 {[%clk 0:03:02]} 5. O-O {[%clk 0:03:01]}  Bg7 {[%clk 0:03:03]} 6. c4 {[%clk 0:03:00]}  Nge7 {[%clk 0:03:03]} 7. Nc3 {[%clk 0:03:00]}  O-O {[%clk 0:03:04]} 8. h4 {[%clk 0:02:53]}  d6 {[%clk 0:03:05]} 9. h5 {[%clk 0:02:52]}  gxh5 {[%clk 0:03:05]} 10. Ne1 {[%clk 0:02:47]}  Ng6 {[%clk 0:03:04]} 11. Ne4 {[%clk 0:02:39]}  h4 {[%clk 0:03:02]} 12. Bg5 {[%clk 0:02:36]}  f6 {[%clk 0:03:02]} 13. Bd2 {[%clk 0:02:30]}  f5 {[%clk 0:03:01]} 14. Ng5 {[%clk 0:02:27]}  hxg3 {[%clk 0:03:00]} 15. fxg3 {[%clk 0:02:27]}  Qe8 {[%clk 0:03:00]} 16. Nc2 {[%clk 0:02:25]}  h6 {[%clk 0:02:58]} 17. Nf3 {[%clk 0:02:23]}  Be6 {[%clk 0:02:57]} 18. Ne3 {[%clk 0:02:21]}  Nd4 {[%clk 0:02:56]} 19. Nxd4 {[%clk 0:02:19]}  cxd4 {[%clk 0:02:57]} 20. Nd5 {[%clk 0:02:20]}  Qd7 {[%clk 0:02:54]} 21. Qb3 {[%clk 0:02:19]}  Kh7 {[%clk 0:02:53]} 22. a4 {[%clk 0:02:08]}  Rf7 {[%clk 0:02:54]} 23. a5 {[%clk 0:02:08]}  Rg8 {[%clk 0:02:54]} 24. Qa4 {[%clk 0:02:05]}  Qc8 {[%clk 0:02:53]} 25. a6 {[%clk 0:02:02]}  f4 {[%clk 0:02:53]} 26. axb7 {[%clk 0:02:01]}  Rxb7 {[%clk 0:02:54]} 27. gxf4 {[%clk 0:01:57]}  exf4 {[%clk 0:02:54]} 28. Nxf4 {[%clk 0:01:55]}  Nxf4 {[%clk 0:02:54]} 29. Bxf4 {[%clk 0:01:53]}  Be5 {[%clk 0:02:54]} 30. Bxe5 {[%clk 0:01:41]}  dxe5 {[%clk 0:02:55]} 31. Rf2 {[%clk 0:01:27]}  Bh3 {[%clk 0:02:52]} 32. Raf1 {[%clk 0:01:01]}  Rbg7 {[%clk 0:02:50]} 0-1


[Site "https://www.chess.com"]

[Event "Titled Tuesday Blitz January 31 Late 2023"]
[White "Srbis, Jurica"]
[Black "Bouget, Alexandre"]
[WhiteFideId "14515555"]
[BlackFideId "681318"]
[WhiteElo "2433"]
[BlackElo "2267"]
[Result "1-0"]
[Round "01"]
[TimeControl "180+2"]
[Date "2023.01.31"]
[WhiteClock "0:00:59"]
[BlackClock "0:00:57"]

1. e4 {[%clk 0:02:57]}  e5 {[%clk 0:02:59]} 2. Nf3 {[%clk 0:02:57]}  Nc6 {[%clk 0:03:00]} 3. Nc3 {[%clk 0:02:54]}  Nf6 {[%clk 0:02:59]} 4. d4 {[%clk 0:02:55]}  exd4 {[%clk 0:02:59]} 5. Nxd4 {[%clk 0:02:55]}  Bb4 {[%clk 0:02:58]} 6. Nxc6 {[%clk 0:02:55]}  bxc6 {[%clk 0:02:59]} 7. Bd3 {[%clk 0:02:55]}  d5 {[%clk 0:02:59]} 8. exd5 {[%clk 0:02:56]}  O-O {[%clk 0:02:58]} 9. O-O {[%clk 0:02:55]}  Bg4 {[%clk 0:02:59]} 10. f3 {[%clk 0:02:46]}  Bh5 {[%clk 0:02:58]} 11. dxc6 {[%clk 0:02:45]}  Qd4+ {[%clk 0:02:58]} 12. Kh1 {[%clk 0:02:41]}  Bxc3 {[%clk 0:02:59]} 13. bxc3 {[%clk 0:02:39]}  Qxc3 {[%clk 0:02:59]} 14. Rb1 {[%clk 0:02:27]}  Qxc6 {[%clk 0:02:58]} 15. Ba3 {[%clk 0:02:14]}  Rfd8 {[%clk 0:02:53]} 16. Be7 {[%clk 0:02:11]}  Rd7 {[%clk 0:02:51]} 17. Bxf6 {[%clk 0:02:09]}  gxf6 {[%clk 0:02:43]} 18. Qe1 {[%clk 0:02:09]}  Bg6 {[%clk 0:02:40]} 19. Bb5 {[%clk 0:02:08]}  Qd6 {[%clk 0:02:27]} 20. Bxd7 {[%clk 0:02:08]}  Qxd7 {[%clk 0:02:28]} 21. Qc3 {[%clk 0:02:05]}  Kg7 {[%clk 0:02:23]} 22. a3 {[%clk 0:02:05]}  Re8 {[%clk 0:02:17]} 23. Rfe1 {[%clk 0:02:02]}  Rd8 {[%clk 0:02:11]} 24. Qc5 {[%clk 0:01:56]}  h5 {[%clk 0:01:47]} 25. Qxa7 {[%clk 0:01:52]}  h4 {[%clk 0:01:45]} 26. h3 {[%clk 0:01:49]}  Qd2 {[%clk 0:01:38]} 27. Qxc7 {[%clk 0:01:22]}  Rd7 {[%clk 0:01:34]} 28. Qc4 {[%clk 0:01:17]}  Bxc2 {[%clk 0:01:21]} 29. Rbc1 {[%clk 0:01:11]}  Bg6 {[%clk 0:01:17]} 30. Qxh4 {[%clk 0:01:10]}  Rd4 {[%clk 0:01:14]} 31. Qg3 {[%clk 0:01:09]}  Qa2 {[%clk 0:01:13]} 32. f4 {[%clk 0:01:04]}  Rd3 {[%clk 0:01:11]} 33. Re3 {[%clk 0:01:02]}  Qxa3 {[%clk 0:01:10]} 34. Rxd3 {[%clk 0:01:01]}  Qxc1+ {[%clk 0:01:09]} 35. Kh2 {[%clk 0:01:01]}  Qc8 {[%clk 0:00:57]} 36. Rf3 {[%clk 0:00:59]}  Qf5 {[%clk 0:00:57]} 37. Qg4 {[%clk 0:00:59]} 1-0


[Site "https://www.chess.com"]

[Event "Titled Tuesday Blitz January 31 Late 2023"]
[White "Wartiovaara, Oliver"]
[Black "Yuan, Qingyu"]
[WhiteFideId "513024"]
[BlackFideId "8609772"]
[WhiteElo "2264"]
[BlackElo "2373"]
[Result "0-1"]
[Round "01"]
[TimeControl "180+2"]
[Date "2023.01.31"]
[WhiteClock "0:00:03"]
[BlackClock "0:00:04"]

1. d4 {[%clk 0:02:58]}  d5 {[%clk 0:03:00]} 2. c4 {[%clk 0:02:58]}  e6 {[%clk 0:03:00]} 3. Nf3 {[%clk 0:02:57]}  Nf6 {[%clk 0:03:00]} 4. g3 {[%clk 0:02:57]}  Bb4+ {[%clk 0:03:00]} 5. Bd2 {[%clk 0:02:56]}  Be7 {[%clk 0:03:00]} 6. Bg2 {[%clk 0:02:56]}  O-O {[%clk 0:03:01]} 7. O-O {[%clk 0:02:56]}  Nbd7 {[%clk 0:03:01]} 8. Qc2 {[%clk 0:02:53]}  c6 {[%clk 0:03:01]} 9. Rd1 {[%clk 0:02:48]}  b6 {[%clk 0:03:01]} 10. Bf4 {[%clk 0:02:47]}  Bb7 {[%clk 0:02:54]} 11. Ne5 {[%clk 0:02:44]}  Nxe5 {[%clk 0:02:52]} 12. dxe5 {[%clk 0:02:42]}  Nd7 {[%clk 0:02:52]} 13. cxd5 {[%clk 0:02:40]}  exd5 {[%clk 0:02:51]} 14. e4 {[%clk 0:02:31]}  d4 {[%clk 0:02:51]} 15. Rxd4 {[%clk 0:02:27]}  Bc5 {[%clk 0:02:52]} 16. Rd1 {[%clk 0:02:23]}  Qe7 {[%clk 0:02:51]} 17. Nd2 {[%clk 0:01:53]}  g5 {[%clk 0:02:32]} 18. e6 {[%clk 0:01:22]}  fxe6 {[%clk 0:02:13]} 19. Be3 {[%clk 0:01:17]}  Bxe3 {[%clk 0:02:13]} 20. fxe3 {[%clk 0:01:18]}  Ne5 {[%clk 0:02:09]} 21. Nc4 {[%clk 0:01:15]}  Qc5 {[%clk 0:02:04]} 22. Rac1 {[%clk 0:01:13]}  Rad8 {[%clk 0:01:53]} 23. Rxd8 {[%clk 0:01:02]}  Rxd8 {[%clk 0:01:53]} 24. Nxe5 {[%clk 0:01:01]}  Qxe5 {[%clk 0:01:44]} 25. Rf1 {[%clk 0:00:54]}  Ba6 {[%clk 0:01:24]} 26. Rf2 {[%clk 0:00:42]}  Qd6 {[%clk 0:01:00]} 27. Bf1 {[%clk 0:00:36]}  Bxf1 {[%clk 0:00:54]} 28. Rxf1 {[%clk 0:00:35]}  c5 {[%clk 0:00:29]} 29. Qc4 {[%clk 0:00:35]}  Rf8 {[%clk 0:00:25]} 30. Rxf8+ {[%clk 0:00:26]}  Kxf8 {[%clk 0:00:25]} 31. Qa6 {[%clk 0:00:18]}  Qd7 {[%clk 0:00:19]} 32. e5 {[%clk 0:00:15]}  Kg7 {[%clk 0:00:18]} 33. Qf1 {[%clk 0:00:14]}  Qf7 {[%clk 0:00:18]} 34. Qa6 {[%clk 0:00:14]}  Qc7 {[%clk 0:00:17]} 35. Kf2 {[%clk 0:00:10]}  c4 {[%clk 0:00:15]} 36. h4 {[%clk 0:00:06]}  Kg6 {[%clk 0:00:15]} 37. Qa4 {[%clk 0:00:04]}  Kf5 {[%clk 0:00:09]} 38. hxg5 {[%clk 0:00:02]}  Qxe5 {[%clk 0:00:07]} 39. Qe8 {[%clk 0:00:03]}  Qxb2+ {[%clk 0:00:06]} 40. Kf3 {[%clk 0:00:03]}  Qg7 {[%clk 0:00:04]} 41. g4+ {[%clk 0:00:02]}  Kxg5 {[%clk 0:00:04]} 42. Qxe6 {[%clk 0:00:02]}  Qf6+ {[%clk 0:00:04]} 43. Qxf6+ {[%clk 0:00:02]}  Kxf6 {[%clk 0:00:05]} 44. Ke4 {[%clk 0:00:03]}  b5 {[%clk 0:00:04]} 45. Kd4 {[%clk 0:00:03]}  a6 {[%clk 0:00:04]} 0-1


[Site "https://www.chess.com"]